[Event "4NCL 2023-2024"]
[Site "Daventry"]
[Date "2024.05.05"]
[Round "10.27"]
[White "Arnott, Jonathan W"]
[Black "Gormally, Daniel W"]
[Result "0-1"]
[ECO "B50"]
[WhiteElo "2113"]
[BlackElo "2419"]
[Annotator "TA"]
[PlyCount "80"]
[EventDate "2023.11.11"]
[EventType "team-tourn"]
[EventCountry "ENG"]
[SourceTitle "playchess.com"]
[Source "ChessBase"]
[SourceQuality "1"]
[TimeControl "40/6000+30:3000+30"]

{[%evp 18,80,55,29,19,3,0,0,0,-84,-94,-102,-97,-98,-90,-134,-113,-133,-116,-112,-82,-131,-133,-126,-133,-131,-111,-129,-131,-127,-100,-111,-56,-65,-42,-109,-117,-108,-120,-206,-210,-220,-213,-206,-162,-161,-163,-361,-359,-360,-359,-776,-776,-794,-792,-1059,-1053,-29966,-29969,-29971,-29971,-29965,-29967,-6436,-6123]} 1. e4 {[%emt 0:00:01]} c5 {[%emt 0:00:08]} 2. Nf3 {[%emt 0:00:08]} d6 {[%emt 0:00:24]} 3. Bb5+ {[%emt 0:00:35]} Nd7 {[%emt 0:01:00]} 4. O-O {[%emt 0:01:02]} Ngf6 {[%emt 0:00:32]} 5. Re1 {[%emt 0:00:32]} a6 {[%emt 0:00:23]} 6. Bf1 {[%emt 0:00:37]} g6 {[%emt 0:01:53]} 7. c3 {[%emt 0:02:29]} Bg7 {[%emt 0:00:13]} 8. d4 {[%emt 0:01:24]} cxd4 {[%emt 0:00:06]} 9. cxd4 {[%emt 0:00:13]} O-O {[%emt 0:00:07]} 10. Nc3 {[%emt 0:01:49]} b5 {[%emt 0:00:32]} 11. e5 {[%emt 0:06:35]} dxe5 {[%emt 0:04:03]} 12. dxe5 {[%emt 0:00:26]} Ng4 {[%emt 0:00:31][%cal Rd7e5] The position is equal.} 13. Qd5 {[%emt 0:22:04] [#]} (13. Bf4 $11 Bb7 14. h3 Bxf3 15. Qxf3 Ngxe5 16. Qe3) 13... Qb6 $1 $17 {[%emt 0:03:03]} 14. Be3 {[%emt 0:11:09]} Nxe3 {[%emt 0:03:34]} 15. Rxe3 {[%emt 0:00:04] [#]} e6 $1 {[%emt 0:01:21]} 16. Qxa8 {[%emt 0:08:42]} Bb7 {[%emt 0:00:06]} 17. Qxf8+ {[%emt 0:00:05]} Kxf8 {[%emt 0:03:08]} 18. Rd1 {[%emt 0:06:26]} Ke7 {[%emt 0:05:00]} 19. Red3 {[%emt 0:10:39]} (19. h3 $142) 19... Nxe5 {[%emt 0:06:35]} 20. Nxe5 {[%emt 0:00:08]} Bxe5 {[%emt 0:00:04]} 21. Be2 {[%emt 0:00:27]} Bc6 {[%emt 0:17:26] Dancing on a razor blade.} 22. b4 {[%emt 0:06:15]} Qc7 {[%emt 0:11:57]} 23. h3 {[%emt 0:04:25]} Bh2+ {[%emt 0:05:23] A strong pair of Bishops.} 24. Kh1 {[%emt 0:03:06]} Bf4 {[%emt 0:00:30]} (24... a5 $17 {Strongly threatening ...Be5.} 25. a4 axb4 (25... bxa4 26. b5 $11) 26. Nxb5 Bxb5 27. axb5 Be5) 25. Bf3 $15 {[%emt 0:01:18]} Bxf3 {[%emt 0:02:38]} 26. Rxf3 {[%emt 0:00:04] Black converts the advantage convincingly.} ({White should play} 26. gxf3 $15 f5 27. Ne2) 26... Qc4 $36 {[%emt 0:00:05][%mdl 2048] Black is in control.} 27. a3 {[%emt 0:03:13]} Be5 {[%emt 0:02:02]} 28. Rdd3 {[%emt 0:02:12]} (28. Re3 $17 {keeps fighting.}) 28... h5 {[%emt 0:01:13]} 29. g3 {[%emt 0:02:57]} g5 {[%emt 0:04:20] White must now prevent ...g4.} 30. Ne2 {[%emt 0:05:36]} Qc2 {[%emt 0:06:15]} 31. Rfe3 {[%emt 0:01:14]} Bc7 {[%emt 0:04:32] aiming for ...Bb6.} 32. Kg2 $2 {[%emt 0:02:56]} (32. Nc3) 32... Bb6 $19 {[%emt 0:02:12]} 33. Nd4 {[%emt 0:00:37]} Qc4 {[%emt 0:02:07]} 34. Nf5+ {[%emt 0:06:26]} (34. Nf3 Bxe3 35. Rxe3) 34... Kf8 {[%emt 0:00:44]} 35. Nd6 {[%emt 0:01:06]} Qc6+ {[%emt 0:00:07]} 36. Rf3 {[%emt 0:00:42]} g4 {[%emt 0:00:09]} 37. hxg4 {[%emt 0:00:17]} hxg4 {[%emt 0:00:05]} 38. Nxf7 {[%emt 0:00:13]} Qxf3+ {[%emt 0:00:51]} 39. Rxf3 {[%emt 0:00:40]} gxf3+ {[%emt 0:00:05]} 40. Kxf3 {[%emt 0:00:05]} Kxf7 {[%emt 0:00:03] Weighted Error Value: White=0.59/Black=0.09 (flawless) .  Mistake:       	White=6     	Black=1      Inaccurate:     	White=1     	---        OK:         	White=5     	Black=12     Best:        	White=3     	Black=1      Strong:       	---       	Black=2} 0-1

[Event "4NCL 2023-2024"]
[Site "Daventry"]
[Date "2024.05.05"]
[Round "10.28"]
[White "Webb, Laurence E"]
[Black "Townsend, M Paul"]
[Result "1-0"]
[ECO "D37"]
[WhiteElo "2203"]
[BlackElo "2153"]
[Annotator "RC"]
[PlyCount "141"]
[EventDate "2023.11.11"]
[EventType "team-tourn"]
[EventCountry "ENG"]
[SourceTitle "playchess.com"]
[Source "ChessBase"]
[SourceQuality "1"]
[TimeControl "40/6000+30:3000+30"]

1. d4 {[%emt 0:00:15]} Nf6 {[%emt 0:00:21]} 2. c4 {[%emt 0:00:16]} e6 {[%emt 0:00:13]} 3. Nf3 {[%emt 0:00:57]} d5 {[%emt 0:00:40]} 4. Nc3 {[%emt 0:00:47]} a6 {[%emt 0:01:02]} 5. cxd5 {[%emt 0:01:42]} exd5 {[%emt 0:00:07]} 6. Bf4 {[%emt 0:02:29]} Bd6 {[%emt 0:03:06]} 7. Bxd6 {[%emt 0:00:47]} Qxd6 {[%emt 0:00:10]} 8. e3 {[%emt 0:00:14]} Bf5 {[%emt 0:02:24]} 9. Be2 {[%emt 0:03:15]} Nbd7 {[%emt 0:06:30]} 10. O-O {[%emt 0:01:56]} h6 {[%emt 0:01:44]} 11. Rc1 {[%emt 0:01:25]} O-O {[%emt 0:02:51]} 12. a3 {[%emt 0:04:57]} c6 {[%emt 0:12:53]} 13. Na4 {[%emt 0:06:00]} Ne4 {[%emt 0:06:01]} 14. Nd2 {[%emt 0:02:16]} Ndf6 {[%emt 0:16:44]} 15. Nxe4 {[%emt 0:06:15]} Nxe4 {[%emt 0:00:42]} 16. Bd3 {[%emt 0:17:16]} Qe7 {[%emt 0:05:03]} 17. Bxe4 {[%emt 0:05:22]} Bxe4 {[%emt 0:01:10]} 18. Nc5 {[%emt 0:03:06]} Bf5 {[%emt 0:09:06]} 19. Qf3 {[%emt 0:05:33]} Bg6 {[%emt 0:09:09]} 20. Rc3 {[%emt 0:02:21]} Rfc8 {[%emt 0:10:23]} 21. Rfc1 {[%emt 0:02:33]} Rc7 {[%emt 0:01:14]} 22. h3 {[%emt 0:03:41]} Rd8 {[%emt 0:04:07]} 23. Qg3 {[%emt 0:04:42]} Rd6 {[%emt 0:01:29]} 24. Kh2 {[%emt 0:04:17]} Bf5 {[%emt 0:02:46]} 25. Qe5 {[%emt 0:01:23]} Bc8 {[%emt 0:07:48]} 26. Qxe7 {[%emt 0:01:59]} Rxe7 {[%emt 0:00:02]} 27. b4 {[%emt 0:00:46]} Rc7 {[%emt 0:03:24]} 28. f3 {[%emt 0:01:17]} Re7 {[%emt 0:00:39]} 29. Kg3 {[%emt 0:00:27]} h5 {[%emt 0:01:01]} 30. h4 {[%emt 0:02:29]} Bf5 {[%emt 0:00:32]} 31. Kf2 {[%emt 0:00:35]} Kf8 {[%emt 0:00:39]} 32. Re1 {[%emt 0:03:15]} Ke8 {[%emt 0:00:44]} 33. a4 {[%emt 0:01:29]} Kd8 {[%emt 0:00:47]} 34. Ra1 {[%emt 0:01:47]} Rc7 {[%emt 0:00:29]} 35. Rb3 {[%emt 0:03:54]} Bc8 {[%emt 0:00:39]} 36. Nd3 {[%emt 0:03:38]} Bf5 {[%emt 0:00:26]} 37. Nf4 {[%emt 0:00:31]} g6 {[%emt 0:00:23]} 38. Rc3 {[%emt 0:00:55]} Rc8 {[%emt 0:01:04]} 39. Rac1 {[%emt 0:00:52]} Bd7 {[%emt 0:00:27]} 40. Nd3 {[%emt 0:01:16]} Ra8 {[%emt 0:00:39]} 41. Nc5 {[%emt 0:53:55]} Bc8 {[%emt 0:05:27]} 42. Nb3 {[%emt 0:00:00]} Bd7 {[%emt 0:03:21]} 43. e4 {[%emt 0:00:00]} dxe4 {[%emt 0:01:06]} 44. fxe4 {[%emt 0:00:00]} Be6 {[%emt 0:04:49]} 45. e5 {[%emt 0:00:00]} Rd7 {[%emt 0:02:46]} 46. Ke3 {[%emt 0:00:00]} Bxb3 {[%emt 0:04:59]} 47. Rxb3 {[%emt 0:00:00]} Ke7 {[%emt 0:03:40]} 48. Rc5 {[%emt 0:00:00]} Rad8 {[%emt 0:00:50]} 49. Rd3 {[%emt 0:00:00]} Rd5 {[%emt 0:00:45]} 50. Rxd5 {[%emt 0:00:00]} Rxd5 {[%emt 0:01:52]} 51. Ke4 {[%emt 0:00:00]} Ke6 {[%emt 0:02:42]} 52. Rf3 {[%emt 0:00:00]} Ke7 {[%emt 0:02:09]} 53. Rf6 {[%emt 0:00:00]} Rd8 {[%emt 0:05:18]} 54. b5 {[%emt 0:00:00]} cxb5 {[%emt 0:06:01]} 55. axb5 {[%emt 0:00:00]} a5 {[%emt 0:00:25]} 56. d5 {[%emt 0:00:00]} a4 {[%emt 0:01:27]} 57. d6+ {[%emt 0:00:00]} Ke8 {[%emt 0:01:41]} 58. Rf3 {[%emt 0:00:00]} Ra8 {[%emt 0:00:41]} 59. Ra3 {[%emt 0:00:00]} Kd7 {[%emt 0:01:05]} 60. Kd5 {[%emt 0:00:00]} b6 {[%emt 0:00:32]} 61. Rf3 {[%emt 0:01:57]} Ke8 {[%emt 0:03:38]} 62. e6 {[%emt 0:01:41]} fxe6+ {[%emt 0:00:23]} 63. Kxe6 {[%emt 0:00:34]} Ra7 {[%emt 0:00:33]} 64. Rc3 {[%emt 0:00:59]} Kd8 {[%emt 0:00:30]} 65. Rg3 {[%emt 0:06:39]} Rg7 {[%emt 0:01:27]} 66. Kd5 {[%emt 0:02:21]} Kd7 {[%emt 0:00:35]} 67. Rc3 {[%emt 0:00:36]} Kd8 {[%emt 0:01:41]} 68. Kc6 {[%emt 0:00:59]} g5 {[%emt 0:01:43]} 69. Rf3 {[%emt 0:00:53]} Ke8 {[%emt 0:00:58]} 70. hxg5 {[%emt 0:01:10]} Rg6 {[%emt 0:00:28]} 71. Rf4 {[%emt 0:03:30]} 1-0

[Event "4NCL 2023-2024"]
[Site "Daventry"]
[Date "2024.05.05"]
[Round "10.29"]
[White "Carroll, Thomas"]
[Black "Ledger, Dave J"]
[Result "1-0"]
[ECO "D04"]
[WhiteElo "2091"]
[BlackElo "2211"]
[Annotator "RC"]
[PlyCount "53"]
[EventDate "2023.11.11"]
[EventType "team-tourn"]
[EventCountry "ENG"]
[SourceTitle "playchess.com"]
[Source "ChessBase"]
[SourceQuality "1"]
[TimeControl "40/6000+30:3000+30"]

1. d4 {[%emt 0:01:54]} Nf6 {[%emt 0:00:11]} 2. Nf3 {[%emt 0:00:16]} d5 {[%emt 0:00:44]} 3. e3 {[%emt 0:05:40]} a6 {[%emt 0:12:01]} 4. Bd3 {[%emt 0:02:48]} e6 {[%emt 0:00:45]} 5. Nbd2 {[%emt 0:02:41]} c5 {[%emt 0:00:53]} 6. c3 {[%emt 0:02:28]} Nc6 {[%emt 0:03:01]} 7. Qe2 {[%emt 0:01:10]} Qc7 {[%emt 0:07:19]} 8. O-O {[%emt 0:03:35]} Bd6 {[%emt 0:04:38]} 9. dxc5 {[%emt 0:05:21]} Bxc5 {[%emt 0:00:05]} 10. e4 {[%emt 0:01:29]} dxe4 {[%emt 0:04:07]} 11. Nxe4 {[%emt 0:00:14]} Be7 {[%emt 0:05:31]} 12. Re1 {[%emt 0:10:53]} Bd7 {[%emt 0:05:35]} 13. g3 {[%emt 0:04:48]} Nxe4 {[%emt 0:04:28]} 14. Bxe4 {[%emt 0:05:16]} Bd6 {[%emt 0:11:40]} 15. Be3 {[%emt 0:04:41]} Ne5 {[%emt 0:07:05]} 16. Bd4 {[%emt 0:08:45]} Bb5 {[%emt 0:07:35]} 17. Qe3 {[%emt 0:04:25]} Nc4 {[%emt 0:03:05]} 18. Qg5 {[%emt 0:05:54]} f6 {[%emt 0:00:57]} 19. Qh5+ {[%emt 0:06:08]} Qf7 {[%emt 0:01:27]} 20. Qh3 {[%emt 0:02:46]} e5 {[%emt 0:02:12]} 21. b3 {[%emt 0:02:11]} Bd7 {[%emt 0:00:49]} 22. Qg2 {[%emt 0:04:09]} Na5 {[%emt 0:01:07]} 23. Bb6 {[%emt 0:02:09]} Nc6 {[%emt 0:00:33]} 24. Rad1 {[%emt 0:00:24]} Be7 {[%emt 0:03:36]} 25. Rd2 {[%emt 0:02:30]} Rc8 {[%emt 0:01:54]} 26. Rxd7 {[%emt 0:00:42]} Kxd7 {[%emt 0:00:14]} 27. Bf5+ {[%emt 0:00:13]} 1-0

[Event "4NCL 2023-2024"]
[Site "Daventry"]
[Date "2024.05.05"]
[Round "10.30"]
[White "Varney, Zoe"]
[Black "Gayson, Peter M"]
[Result "1-0"]
[ECO "A80"]
[WhiteElo "2070"]
[BlackElo "2101"]
[Annotator "RC"]
[PlyCount "107"]
[EventDate "2023.11.11"]
[EventType "team-tourn"]
[EventCountry "ENG"]
[SourceTitle "playchess.com"]
[Source "ChessBase"]
[SourceQuality "1"]
[TimeControl "40/6000+30:3000+30"]

1. d4 {[%emt 0:00:04]} f5 {[%emt 0:03:11]} 2. Nc3 {[%emt 0:00:08]} d5 {[%emt 0:00:21]} 3. Bf4 {[%emt 0:00:16]} Nf6 {[%emt 0:00:41]} 4. Nb5 {[%emt 0:00:33]} Na6 {[%emt 0:00:31]} 5. e3 {[%emt 0:00:25]} c6 {[%emt 0:01:11]} 6. Nc3 {[%emt 0:00:21]} e6 {[%emt 0:01:22]} 7. Bxa6 {[%emt 0:01:08]} bxa6 {[%emt 0:03:25]} 8. Na4 {[%emt 0:00:20]} c5 {[%emt 0:03:55]} 9. Nxc5 {[%emt 0:03:10]} Bxc5 {[%emt 0:01:20]} 10. dxc5 {[%emt 0:00:07]} Qa5+ {[%emt 0:00:47]} 11. c3 {[%emt 0:00:24]} Qxc5 {[%emt 0:00:41]} 12. Nf3 {[%emt 0:00:50]} a5 {[%emt 0:03:42]} 13. Qd4 {[%emt 0:04:19]} Qb5 {[%emt 0:19:17]} 14. Bd6 {[%emt 0:08:21]} Ba6 {[%emt 0:06:28]} 15. O-O-O {[%emt 0:05:47]} Qd7 {[%emt 0:01:04]} 16. Bg3 {[%emt 0:29:19]} O-O {[%emt 0:04:52]} 17. Ne5 {[%emt 0:04:12]} Qb5 {[%emt 0:02:31]} 18. f3 {[%emt 0:04:17]} Rab8 {[%emt 0:08:13]} 19. Rd2 {[%emt 0:15:32]} Rb7 {[%emt 0:05:49]} 20. Nd3 {[%emt 0:06:34]} Rc8 {[%emt 0:01:03]} 21. Bd6 {[%emt 0:08:00]} Nd7 {[%emt 0:03:56]} 22. Ne5 {[%emt 0:02:06]} Nb6 {[%emt 0:11:24]} 23. Rc2 {[%emt 0:07:56]} Nc4 {[%emt 0:10:22]} 24. Nxc4 {[%emt 0:00:13]} Rxc4 {[%emt 0:00:44]} 25. Qe5 {[%emt 0:00:09]} Qd7 {[%emt 0:00:17]} 26. Rd1 {[%emt 0:02:20]} Rc6 {[%emt 0:06:21]} 27. Ba3 {[%emt 0:00:20]} Qc7 {[%emt 0:03:24]} 28. Rxd5 {[%emt 0:02:14]} Bc4 {[%emt 0:05:26]} 29. Qxc7 {[%emt 0:02:17]} Rbxc7 {[%emt 0:00:36]} 30. Rxa5 {[%emt 0:02:17]} Bxa2 {[%emt 0:00:10]} 31. Rd2 {[%emt 0:00:15]} Bd5 {[%emt 0:00:29]} 32. Rd4 {[%emt 0:00:25]} Kf7 {[%emt 0:00:51]} 33. Kc2 {[%emt 0:00:13]} Rc4 {[%emt 0:00:30]} 34. Bd6 {[%emt 0:01:13]} Rb7 {[%emt 0:00:59]} 35. Bc5 {[%emt 0:00:39]} Rxd4 {[%emt 0:01:22]} 36. Bxd4 {[%emt 0:00:42]} Bc4 {[%emt 0:00:29]} 37. Bxa7 {[%emt 0:00:45]} Bf1 {[%emt 0:00:34]} 38. g3 {[%emt 0:00:26]} Bg2 {[%emt 0:00:16]} 39. f4 {[%emt 0:00:30]} Be4+ {[%emt 0:00:14]} 40. Kc1 {[%emt 0:00:08]} Ke7 {[%emt 0:01:09]} 41. Bd4 {[%emt 0:14:46]} g6 {[%emt 0:00:49]} 42. c4 {[%emt 0:05:35]} Bd3 {[%emt 0:01:57]} 43. Ra4 {[%emt 0:00:43]} Kd6 {[%emt 0:02:24]} 44. Kd2 {[%emt 0:03:40]} Rb3 {[%emt 0:05:08]} 45. Ra6+ {[%emt 0:06:53]} Kd7 {[%emt 0:01:44]} 46. Ra7+ {[%emt 0:00:07]} Kc6 {[%emt 0:00:24]} 47. c5 {[%emt 0:00:38]} Bc4 {[%emt 0:02:02]} 48. Rxh7 {[%emt 0:03:37]} Rd3+ {[%emt 0:00:12]} 49. Kc2 {[%emt 0:00:58]} Kd5 {[%emt 0:00:30]} 50. Rb7 {[%emt 0:02:41]} g5 {[%emt 0:06:25]} 51. b3 {[%emt 0:01:10]} Ba6 {[%emt 0:00:40]} 52. Rb6 {[%emt 0:00:12]} gxf4 {[%emt 0:00:15]} 53. Rxa6 {[%emt 0:03:22]} e5 {[%emt 0:02:03]} 54. Kxd3 {[%emt 0:00:47]} 1-0

[Event "4NCL 2023-2024"]
[Site "Daventry"]
[Date "2024.05.05"]
[Round "10.31"]
[White "Chan, Sheng Liang Bernard"]
[Black "Eames, Robert S"]
[Result "1-0"]
[ECO "A57"]
[WhiteElo "2096"]
[BlackElo "2175"]
[Annotator "RC"]
[PlyCount "65"]
[EventDate "2023.11.11"]
[EventType "team-tourn"]
[EventCountry "ENG"]
[SourceTitle "playchess.com"]
[Source "ChessBase"]
[SourceQuality "1"]
[TimeControl "40/6000+30:3000+30"]

1. d4 {[%emt 0:05:03]} Nf6 {[%emt 0:00:10]} 2. c4 {[%emt 0:00:24]} c5 {[%emt 0:00:08]} 3. d5 {[%emt 0:00:20]} b5 {[%emt 0:00:09]} 4. cxb5 {[%emt 0:00:07]} a6 {[%emt 0:00:04]} 5. e3 {[%emt 0:00:32]} e6 {[%emt 0:00:29]} 6. Nc3 {[%emt 0:00:30]} exd5 {[%emt 0:00:19]} 7. Nxd5 {[%emt 0:00:25]} Bb7 {[%emt 0:00:20]} 8. Nxf6+ {[%emt 0:00:14]} Qxf6 {[%emt 0:00:12]} 9. Nf3 {[%emt 0:00:05]} Be7 {[%emt 0:04:11]} 10. Be2 {[%emt 0:00:43]} axb5 {[%emt 0:00:29]} 11. Bxb5 {[%emt 0:00:06]} O-O {[%emt 0:03:24]} 12. O-O {[%emt 0:06:26]} d5 {[%emt 0:02:34]} 13. Qb3 {[%emt 0:07:38]} Na6 {[%emt 0:05:19]} 14. Bd2 {[%emt 0:06:20]} c4 {[%emt 0:01:57]} 15. Qc3 {[%emt 0:12:03]} Nc7 {[%emt 0:07:35]} 16. Bd7 {[%emt 0:13:32]} Rfd8 {[%emt 0:03:42]} 17. Bh3 {[%emt 0:00:05]} Qb6 {[%emt 0:08:53]} 18. Qc2 {[%emt 0:03:57]} Bc6 {[%emt 0:04:40]} 19. Nd4 {[%emt 0:05:22]} Nb5 {[%emt 0:03:58]} 20. Nxb5 {[%emt 0:00:55]} Bxb5 {[%emt 0:00:44]} 21. Bc3 {[%emt 0:00:43]} Bf6 {[%emt 0:02:27]} 22. a4 {[%emt 0:04:52]} Bxc3 {[%emt 0:00:29]} 23. bxc3 {[%emt 0:00:45]} Bc6 {[%emt 0:00:40]} 24. Rfb1 {[%emt 0:03:02]} Qc7 {[%emt 0:00:18]} 25. Bg4 {[%emt 0:01:09]} Rd6 {[%emt 0:02:28]} 26. Bf3 {[%emt 0:01:48]} Rh6 {[%emt 0:02:32]} 27. g3 {[%emt 0:02:58]} Qd7 {[%emt 0:05:41]} 28. Bg2 {[%emt 0:01:30]} g5 {[%emt 0:00:21]} 29. a5 {[%emt 0:01:30]} g4 {[%emt 0:00:52]} 30. Rd1 {[%emt 0:01:47]} Qe6 {[%emt 0:07:59]} 31. Rd4 {[%emt 0:02:22]} f5 {[%emt 0:00:30]} 32. Qd2 {[%emt 0:01:09]} Rd8 {[%emt 0:00:53]} 33. Rd1 {[%emt 0:00:13]} 1-0

[Event "4NCL 2023-2024"]
[Site "Daventry"]
[Date "2024.05.05"]
[Round "10.32"]
[White "Ledger, Stephen C"]
[Black "Flint, Martina"]
[Result "1-0"]
[ECO "A48"]
[WhiteElo "2000"]
[BlackElo "1888"]
[Annotator "NA RC"]
[PlyCount "57"]
[EventDate "2023.11.11"]
[EventType "team-tourn"]
[EventCountry "ENG"]
[SourceTitle "playchess.com"]
[Source "ChessBase"]
[SourceQuality "1"]
[TimeControl "40/6000+30:3000+30"]

1. d4 {[%emt 0:00:07]} g6 {[%emt 0:00:11]} 2. Nf3 {[%emt 0:00:27]} Bg7 {[%emt 0:00:17]} 3. Bf4 {[%emt 0:00:34]} d6 {[%emt 0:00:30]} 4. e3 {[%emt 0:01:19]} Nf6 {[%emt 0:01:34]} 5. h3 {[%emt 0:00:56]} O-O {[%emt 0:01:21]} 6. Be2 {[%emt 0:01:02]} Nbd7 {[%emt 0:00:52]} 7. O-O {[%emt 0:02:21]} c6 {[%emt 0:03:55]} 8. c4 {[%emt 0:04:47]} a5 {[%emt 0:10:15]} 9. Nc3 {[%emt 0:06:13]} Qe8 {[%emt 0:03:45]} 10. Bh2 {[%emt 0:06:23]} h6 {[%emt 0:06:33]} 11. a3 {[%emt 0:06:13]} Nh7 {[%emt 0:10:31]} 12. Qd2 {[%emt 1:16:08]} f5 {[%emt 0:06:05]} 13. b4 {[%emt 0:00:00]} axb4 {[%emt 0:04:49]} 14. axb4 {[%emt 0:00:00]} Rxa1 {[%emt 0:00:13]} 15. Rxa1 {[%emt 0:00:00]} e5 {[%emt 0:03:00]} 16. dxe5 {[%emt 0:00:00]} dxe5 {[%emt 0:00:14]} 17. Ra8 {[%emt 0:00:00]} Qe7 {[%emt 0:08:13]} 18. c5 {[%emt 0:00:00]} Ng5 {[%emt 0:03:42]} 19. Nxg5 {[%emt 0:00:00]} hxg5 {[%emt 0:01:09]} 20. Na4 {[%emt 0:00:00]} Rd8 {[%emt 0:08:37]} 21. Qd6 {[%emt 0:00:00]} Qxd6 {[%emt 0:01:50]} 22. cxd6 {[%emt 0:00:00]} Bf6 {[%emt 0:06:05]} 23. Nc5 {[%emt 0:00:00]} Nb6 {[%emt 0:02:58]} 24. Rb8 {[%emt 0:00:00]} Nd7 {[%emt 0:11:31]} 25. Rxc8 {[%emt 0:00:00]} Rxc8 {[%emt 0:03:00]} 26. Nxd7 {[%emt 0:00:00]} Kg7 {[%emt 0:05:35]} 27. Nxe5 {[%emt 0:00:19]} Ra8 {[%emt 0:03:17]} 28. f3 {[%emt 0:02:12]} Ra2 {[%emt 0:01:13]} 29. Kf2 {[%emt 0:05:59]} 1-0

[Event "4NCL 2023-2024"]
[Site "Daventry"]
[Date "2024.05.05"]
[Round "10.33"]
[White "Cherniaev, Alexander"]
[Black "Nasuta, Grzegorz"]
[Result "1/2-1/2"]
[ECO "C78"]
[WhiteElo "2363"]
[BlackElo "2547"]
[Annotator "TA"]
[PlyCount "35"]
[EventDate "2023.11.11"]
[EventType "team-tourn"]
[EventCountry "ENG"]
[SourceTitle "playchess.com"]
[Source "ChessBase"]
[SourceQuality "1"]
[TimeControl "40/6000+30:3000+30"]

{[%evp 12,35,51,47,39,23,25,24,16,35,33,33,29,20,33,30,16,20,28,23,38,36,37,22,43,43]} 1. e4 {[%emt 0:12:32]} e5 {[%emt 0:00:06]} 2. Nf3 {[%emt 0:00:14]} Nc6 {[%emt 0:00:05]} 3. Bb5 {[%emt 0:00:19][%cal Bf1b5,Bb5a4,Ba4b3][%mdl 32]} a6 {[%emt 0:00:06]} 4. Ba4 {[%emt 0:00:07]} Nf6 {[%emt 0:00:08]} 5. O-O {[%emt 0:00:10]} b5 {[%emt 0:00:03]} 6. Bb3 {[%emt 0:00:08]} Bc5 {[%emt 0:00:05]} 7. a4 {[%emt 0:00:08] Strongly threatening axb5.} Rb8 {[%emt 0:00:05] [#]} 8. Nxe5 $1 {[%emt 0:00:09]} Nxe5 {[%emt 0:00:10]} 9. d4 {[%emt 0:00:07]} Bxd4 $1 {[%emt 0:00:08] White has an edge.} 10. Qxd4 {[%emt 0:00:04]} d6 {[%emt 0:00:12]} 11. Bf4 {[%emt 0:00:11]} c5 {[%emt 0:01:46][%cal Bc7c5,Bc5c4][%mdl 32]} 12. Qd2 {[%emt 0:01:30] Black must now prevent Rd1.} O-O {[%emt 0:01:05]} 13. f3 {[%emt 0:00:04] Rd1 would now be deadly.} c4 {[%emt 0:06:33]} 14. Ba2 {[%emt 0:00:05]} Be6 {[%emt 0:00:06]} 15. Nc3 {[%emt 0:00:04]} b4 {[%emt 0:01:38][%cal Bb5b4,Bb4b3][%mdl 32] [#] ...Qb6+ is the strong threat.} 16. Ne2 {[%emt 0:00:05]} b3 {[%emt 0:54:26]} 17. Bb1 {[%emt 0:00:12]} Qc7 {[%emt 0:33:09]} 18. Rd1 {[%emt 0:22:32] Weighted Error Value: White=0.02 (flawless) /Black=0.05 (flawless) .  OK:         	White=6     	Black=5      Strong:       	---       	Black=1} 1/2-1/2